bitfinex-derivatives/quotes_ETHF0:USTF0_20210705
["timestamp","ask_amount","ask_price","bid_price","bid_amount"]
[1625452529391,2.20527,2265.2,2264.6,2.20527]
[1625452529493,2.20527,2265.2,2265.1,4.41054]
[1625452529894,2.20527,2265.2,2263.0,44.09794985]
[1625452529996,5.55387,2265.2,2265.1,15.895086]
[1625452530252,5.55387,2265.2,2263.0,44.09794985]
[1625452530452,5.55387,2265.2,2263.3,20.91357786]
[1625452530554,5.55387,2265.2,2263.3,19.1001]
[1625452530703,3.3486,2265.2,2263.3,19.1001]
[1625452530905,3.3486,2265.2,2263.4,16.125076]
[1625452531009,2.20527,2265.4,2263.5,5.0]
[1625452531109,1.0,2265.3,2263.5,5.0]
[1625452531213,1.0,2265.3,2263.4,16.125076]
[1625452531311,1.0,2265.3,2263.6,16.058135]
[1625452531511,1.0,2265.3,2264.9,2.20527]
[1625452533564,2.20527,2265.0,2264.9,2.20527]
[1625452535165,2.20527,2265.0,2264.9,18.136145]
[1625452535474,1.0,2265.3,2264.9,18.136145]
[1625452535575,2.20527,2265.1,2264.9,2.20527]
[1625452535675,3.20527,2265.1,2264.9,2.20527]
[1625452536774,2.20527,2265.1,2264.9,2.20527]
[1625452537277,3.20527,2265.1,2264.9,2.20527]
[1625452537475,1.0,2265.1,2264.9,2.20527]
[1625452538429,2.20527,2265.4,2264.9,2.20527]
[1625452538530,3.20527,2265.4,2264.9,2.20527]
[1625452539582,2.20527,2265.0,2264.9,2.20527]
[1625452541288,3.20527,2265.0,2264.9,2.20527]
[1625452542239,2.20527,2265.0,2264.9,2.20527]
[1625452543541,3.20527,2265.0,2264.9,2.20527]
[1625452543943,2.20527,2265.0,2264.9,2.20527]
[1625452545254,3.20527,2265.0,2264.9,2.20527]
[1625452546358,2.20527,2265.0,2264.9,2.20527]
[1625452546864,3.20527,2265.0,2264.9,2.20527]
[1625452547366,2.20527,2265.0,2264.9,2.20527]
[1625452547567,3.20527,2265.0,2264.9,2.20527]
[1625452548120,3.20527,2265.0,2264.9,0.69066213]
[1625452549121,3.20527,2265.0,2263.3,17.5033]
[1625452549625,3.20527,2265.0,2264.5,2.20527]
[1625452551579,2.20527,2264.6,2264.5,2.20527]
[1625452551678,3.20527,2264.6,2264.5,2.20527]
[1625452551778,3.20527,2264.6,2263.3,14.1001]
[1625452552379,3.20527,2264.6,2263.9,16.16818]
[1625452552480,2.20527,2264.6,2263.9,16.16818]
[1625452553639,2.20527,2264.6,2264.3,2.20527]
[1625452553935,2.20527,2264.6,2264.4,16.13905]
[1625452555596,2.20527,2264.5,2264.4,16.13905]
[1625452557144,1.0,2265.7,2264.4,16.13905]
[1625452557593,1.0,2265.7,2264.7,2.20527]
[1625452557693,2.20527,2264.9,2264.7,5.11807]
[1625452557843,2.20527,2264.9,2264.7,58.52927]
[1625452557944,2.20527,2264.9,2264.8,16.027334]
[1625452558747,2.20527,2265.1,2264.8,16.027334]
[1625452559654,2.20527,2265.1,2265.0,2.20527]
[1625452559953,2.20527,2265.1,2265.0,18.257825]
[1625452560651,3.20527,2265.1,2265.0,18.257825]
[1625452561010,2.20527,2265.1,2265.0,18.257825]
[1625452561412,2.20527,2265.1,2265.0,16.052555]
[1625452563667,2.20527,2265.1,2265.0,18.257825]
[1625452563767,3.20527,2265.1,2265.0,18.257825]
[1625452564770,3.20527,2265.1,2265.0,16.052555]
[1625452565320,6.66787,2265.1,2265.0,16.052555]
[1625452566980,6.66787,2265.1,2264.7,2.20527]
[1625452567585,6.66787,2265.1,2264.8,16.109189]
[1625452567685,2.20527,2264.9,2264.8,16.109189]
[1625452567785,3.20527,2264.9,2264.8,16.109189]
[1625452568288,3.20527,2264.9,2264.7,2.20527]
[1625452568587,3.20527,2264.9,2263.2,0.8923]
[1625452569188,3.20527,2264.9,2263.4,15.90585]
[1625452569793,4.94647,2264.3,2264.1,2.20527]
[1625452569893,5.94647,2264.3,2263.4,15.90585]
[1625452570092,5.94647,2264.3,2262.6,0.8714]
[1625452570461,5.94647,2264.3,2262.5,1.2916415]
[1625452570560,5.94647,2264.3,2263.4,15.983676]
[1625452571766,2.20527,2263.5,2263.4,18.188946]
[1625452571864,5.68027,2263.5,2263.4,18.188946]
[1625452575679,2.20527,2263.6,2263.4,18.188946]
[1625452578258,2.20527,2263.6,2263.4,21.864346]
[1625452578687,0.64547,2263.6,2263.4,21.864346]
[1625452578888,14.938,2264.9,2263.4,21.864346]
[1625452578989,14.938,2264.9,2264.0,38.4267]
[1625452579088,14.938,2264.9,2264.0,42.1676]
[1625452579287,14.938,2264.9,2264.1,15.91764]
[1625452579787,2.20527,2264.7,2264.6,5.57487]
[1625452581745,2.20527,2264.7,2264.6,21.521979]
[1625452582345,2.20527,2265.1,2264.6,21.521979]
[1625452583548,3.20527,2265.1,2264.6,21.521979]
[1625452583749,2.20527,2265.1,2264.6,21.521979]
[1625452583859,2.20527,2265.1,2265.0,2.20527]
[1625452585154,2.20527,2265.1,2265.0,50.46277]
[1625452585252,2.20527,2265.1,2265.0,66.586208]
[1625452585370,2.20527,2265.3,2265.0,66.586208]
[1625452585575,3.20527,2265.3,2265.0,66.586208]
[1625452585771,1.0,2265.3,2265.1,2.20527]
[1625452586129,1.0,2265.3,2265.2,16.011488]
[1625452587183,1.0,2265.3,2265.1,2.20527]
[1625452587682,1.0,2265.3,2264.1,13.9902]
[1625452587889,2.20527,2265.0,2264.9,2.20527]
[1625452588339,2.20527,2265.0,2264.9,18.362274]
[1625452588439,2.20527,2265.0,2264.9,68.302374]
[1625452588541,1.0,2265.3,2264.9,68.302374]
[1625452589192,2.20527,2265.6,2264.9,68.302374]
[1625452589294,1.0,2265.5,2264.9,68.302374]
[1625452589845,1.0,2265.5,2265.3,2.20527]
[1625452590147,1.0,2265.5,2264.9,52.14537]
[1625452590246,4.0927,2265.5,2264.9,52.14537]
[1625452590797,4.0927,2265.5,2265.0,16.020331]
[1625452591802,4.0927,2265.5,2265.4,2.20527]
[1625452592052,4.0927,2265.5,2265.0,16.020331]
[1625452592152,4.0927,2265.5,2264.9,52.14537]
[1625452592804,4.0927,2265.5,2265.0,16.023945]
[1625452593904,4.0927,2265.5,2265.4,2.20527]
[1625452594960,4.0927,2265.5,2264.9,2.20527]
[1625452595060,4.0927,2265.5,2264.1,13.9902]
[1625452595412,54.0939,2265.3,2264.1,13.9902]
[1625452595510,1.0,2265.2,2264.1,13.9902]
[1625452595710,1.0,2265.2,2264.2,15.967462]
[1625452596012,2.20527,2264.7,2264.5,2.20527]
[1625452597125,3.20527,2264.7,2264.5,2.20527]
[1625452597223,6.74107,2264.7,2264.5,2.20527]
[1625452597424,6.74107,2264.7,2264.6,16.0124]
[1625452597524,5.74107,2264.7,2264.6,16.0124]
[1625452597623,5.74107,2264.7,2264.5,2.20527]
[1625452597725,5.74107,2264.7,2264.3,2.20527]
[1625452597925,1.0,2264.6,2264.3,2.20527]
[1625452598024,2.20527,2264.4,2264.3,2.20527]
[1625452598124,3.20527,2264.4,2264.3,2.20527]
[1625452600496,2.20527,2264.7,2264.3,2.20527]
[1625452600594,1.27754207,2265.6,2264.4,1.0]
[1625452600895,16.05028031,2266.2,2264.4,1.0]
[1625452600995,16.05028031,2266.2,2264.5,16.085618]
[1625452601099,16.05028031,2266.2,2264.6,1.0]
[1625452601196,16.05028031,2266.2,2265.1,40.1395]
[1625452601294,16.05028031,2266.2,2265.2,1.0]
[1625452601394,16.05028031,2266.2,2265.2,4.2281]
[1625452601496,14.7716,2266.2,2265.2,4.2281]
[1625452601947,2.20527,2265.8,2265.7,2.20527]
[1625452602044,2.20527,2265.8,2265.7,3.20527]
[1625452602146,2.20527,2265.8,2265.7,2.20527]
[1625452603145,2.20527,2265.8,2265.4,2.20527]
[1625452603748,4.74877,2265.8,2265.4,2.20527]
[1625452603899,2.20527,2265.5,2265.4,2.20527]
[1625452607207,2.20527,2265.5,2265.4,3.20527]
[1625452607713,2.20527,2265.5,2265.4,2.20527]
[1625452608959,5.01507,2265.5,2265.4,2.20527]
[1625452610661,2.8098,2265.5,2265.4,2.20527]
[1625452611612,2.20527,2265.8,2265.4,2.20527]
[1625452612014,2.20527,2265.5,2265.4,2.20527]
[1625452612723,2.20527,2265.5,2264.7,1.0]
[1625452612827,4.85827,2265.5,2264.7,1.0]
[1625452613984,4.85827,2265.5,2265.3,2.20527]
[1625452615996,2.20527,2265.4,2265.3,2.20527]
[1625452617047,2.20527,2265.4,2265.3,42.61797]
[1625452617148,2.20527,2265.4,2265.3,43.61797]
[1625452618707,16.05314567,2266.2,2265.3,3.20527]
[1625452619160,1.28112743,2266.1,2265.3,3.20527]
[1625452619460,1.28112743,2266.1,2265.3,43.41117]
[1625452619661,16.05266391,2266.2,2265.3,43.41117]
[1625452619962,14.7716,2266.2,2265.3,43.41117]
[1625452620063,2.20527,2266.0,2265.9,2.20527]
[1625452621566,2.20527,2266.0,2265.3,3.20527]
[1625452621773,5.67247,2266.0,2265.3,3.20527]
[1625452622017,2.20527,2265.4,2265.3,3.20527]
[1625452626393,14.7716,2266.2,2265.3,3.20527]
[1625452627343,14.7716,2266.2,2265.3,5.79627]
[1625452628094,14.7716,2266.2,2266.1,2.20527]
[1625452628194,2.20527,2266.3,2266.1,2.20527]
[1625452630054,4.41054,2266.3,2266.1,2.20527]
[1625452632820,4.41054,2266.3,2266.2,1.0]
[1625452633018,4.41054,2266.3,2266.1,2.20527]
[1625452636443,4.41054,2266.3,2265.9,2.20527]
[1625452638094,2.20527,2266.0,2265.9,4.41054]
[1625452638994,2.20527,2266.0,2265.9,5.41054]
[1625452640348,2.20527,2266.0,2265.9,4.41054]
[1625452641701,2.20527,2266.0,2265.9,2.20527]
[1625452644106,2.20527,2266.0,2265.5,2.20527]
[1625452644205,2.20527,2265.6,2265.5,2.20527]
[1625452647561,2.20527,2265.6,2265.5,7e-05]
[1625452652341,2.20527,2265.6,2265.5,2.71407]
[1625452652465,2.20527,2265.6,2265.5,3.71407]
[1625452652558,2.20527,2266.0,2265.5,3.71407]
[1625452654203,2.20527,2266.0,2265.9,2.20527]
[1625452654402,2.20527,2266.0,2265.9,3.20527]
[1625452658761,2.20527,2266.0,2265.9,2.20527]
[1625452659764,4.59877,2266.0,2265.9,2.20527]
[1625452668360,4.59877,2266.0,2265.5,7e-05]
[1625452668449,4.59877,2266.0,2265.1,0.52840909]
[1625452668553,5.0,2265.9,2265.1,0.52840909]
[1625452668953,39.0307,2265.3,2265.1,0.52840909]
[1625452669060,41.6933,2265.3,2265.1,0.52840909]
[1625452669454,2.6626,2265.3,2265.1,0.52840909]
[1625452670256,4.41054,2265.2,2265.1,0.52840909]
[1625452672158,4.41054,2265.2,2265.1,1.52840909]
[1625452672306,4.41054,2265.2,2265.1,3.73367909]
[1625452673956,4.41054,2265.2,2265.1,2.73367909]
[1625452675419,6.72734,2265.2,2265.1,0.66627909]
[1625452675528,6.72734,2265.2,2264.6,1.30202722]
[1625452675826,6.72734,2265.2,2264.4,1.30219227]
[1625452676130,53.8093,2265.0,2264.4,1.30219227]
[1625452676283,2.20527,2264.5,2264.3,1.85022209]
[1625452676785,2.20527,2264.5,2264.3,0.54803719]
[1625452677391,43.07577,2264.5,2264.3,0.54803719]
[1625452677597,2.20527,2264.5,2264.3,0.54803719]
[1625452678244,2.20527,2264.5,2264.4,1.3020266]
[1625452678344,2.20527,2264.5,2264.4,4.5072966]
[1625452680506,2.20527,2264.5,2264.4,5.1587296]
[1625452681256,2.20527,2264.5,2264.4,21.1746276]
[1625452681357,2.20527,2264.5,2264.4,21.95568039]
[1625452681756,2.20527,2264.5,2264.4,19.35187342]
[1625452682107,2.20527,2264.5,2264.4,21.95572203]
[1625452683761,2.20527,2264.5,2264.4,19.35187342]
[1625452684061,1.28478366,2265.7,2264.4,19.35187342]
[1625452684161,1.28478366,2265.7,2264.4,21.95581338]
[1625452684361,2.20527,2264.9,2264.8,2.20527]
[1625452684461,1.20527,2264.9,2264.8,2.20527]
[1625452686792,1.28645154,2265.8,2264.8,2.20527]
[1625452686876,1.0,2265.7,2264.8,4.98697]
[1625452687329,1.0,2265.7,2264.9,15.905486]
[1625452687429,1.0,2265.8,2264.9,15.905486]
[1625452687832,1.0,2265.8,2264.9,17.20752564]
[1625452688385,3.20527,2265.8,2265.6,2.20527]
[1625452690336,2.20527,2265.7,2265.6,2.20527]
[1625452690445,3.20527,2265.7,2265.6,2.20527]
[1625452690805,2.20527,2265.7,2265.6,2.20527]
[1625452693758,3.20527,2265.7,2265.6,2.20527]
[1625452693858,6.72727,2265.7,2265.6,2.20527]
[1625452694359,6.72727,2265.7,2265.4,2.20527]
[1625452694769,6.72727,2265.7,2265.1,2.20527]
[1625452695608,6.72727,2265.7,2265.0,1.30279648]
[1625452695708,8.01474328,2265.7,2264.9,1.30284974]
[1625452696358,4.41054,2265.0,2264.9,1.30284974]
[1625452696458,7.00104,2265.0,2264.9,1.30284974]
[1625452696708,7.00104,2265.0,2264.8,3.50822109]
[1625452697058,7.00104,2265.0,2264.8,2.20527]
[1625452697761,8.00104,2265.0,2264.8,2.20527]
[1625452701880,7.00104,2265.0,2264.8,2.20527]
[1625452702632,1.0,2264.9,2264.8,2.20527]
[1625452706243,1.0,2264.9,2264.5,1.30275367]
[1625452706442,2.20527,2264.6,2264.5,1.30275367]
[1625452706543,2.20527,2264.6,2264.4,1.30266893]
[1625452706544,3.20527,2264.6,2264.4,1.30266893]
[1625452706643,2.20527,2264.6,2264.4,1.30266893]
[1625452707197,2.20527,2264.6,2264.5,1.30265594]
[1625452708098,3.20527,2264.6,2264.5,1.30265594]
[1625452708199,3.20527,2264.6,2264.4,1.30264724]
[1625452708457,5.41054,2264.6,2264.4,1.30264724]
[1625452708658,5.41054,2264.6,2264.3,4.05589323]
[1625452709410,53.477,2264.4,2264.3,4.05589323]
[1625452709510,57.341,2264.4,2264.3,4.05589323]
[1625452709711,57.341,2264.4,2264.3,2.75330719]
[1625452710012,3.864,2264.4,2264.3,2.75330719]
[1625452710661,1.0,2264.4,2264.3,2.75330719]
[1625452713214,4.7607,2264.4,2264.3,2.75330719]
[1625452724260,3.7607,2264.4,2264.3,2.75330719]
[1625452724360,4.41054,2264.6,2264.3,2.75330719]
[1625452725062,4.41054,2264.6,2264.3,6.21630719]
[1625452725162,1.28369912,2265.2,2264.3,6.21630719]
[1625452725413,1.28288699,2265.3,2264.3,6.21630719]
[1625452725515,2.28288699,2265.3,2264.3,6.21630719]
[1625452725613,2.28288699,2265.3,2264.8,44.4033]
[1625452725715,2.28288699,2265.3,2264.8,47.9905]
[1625452725813,1.0,2265.3,2264.8,47.9905]
[1625452726115,1.0,2265.3,2264.8,3.5872]
[1625452726514,2.20527,2265.2,2265.1,2.20527]
[1625452728468,3.20527,2265.2,2265.1,2.20527]
[1625452728569,5.41054,2265.2,2265.1,2.20527]
[1625452732926,4.41054,2265.2,2265.1,2.20527]
[1625452734288,5.41054,2265.2,2265.1,2.20527]
[1625452740818,4.41054,2265.2,2265.1,2.20527]
[1625452740920,4.41054,2265.2,2265.1,4.97407]
[1625452751314,5.41054,2265.2,2265.1,4.97407]
[1625452751414,5.41054,2265.2,2265.1,2.20527]
[1625452751514,49.24454,2265.2,2265.1,2.20527]
[1625452751612,5.41054,2265.2,2265.1,2.20527]
[1625452759334,5.41054,2265.2,2265.1,43.30367]
[1625452759435,5.41054,2265.2,2265.1,45.66707]
[1625452759788,5.41054,2265.2,2265.1,4.56867]
[1625452766112,5.41054,2265.2,2265.1,2.20527]
[1625452766764,8.71914,2265.2,2264.7,1.30267307]
[1625452767269,8.71914,2265.2,2264.4,1.30283683]
[1625452767771,8.71914,2265.2,2264.6,1.30276635]
[1625452768771,8.71914,2265.2,2264.9,2.20527]
[1625452768772,6.51387,2265.2,2264.9,2.20527]
[1625452769471,6.51387,2265.2,2264.5,1.30281123]
[1625452770677,6.51387,2265.2,2264.4,1.30281087]
[1625452770778,2.20527,2264.7,2264.6,2.20527]
[1625452772678,2.20527,2264.7,2264.4,1.30286413]
[1625452772779,2.20527,2264.6,2264.4,1.30286413]
[1625452773382,2.20527,2264.6,2264.4,38.60676413]
[1625452773732,2.20527,2264.6,2264.4,1.30286413]
[1625452775486,2.20527,2264.6,2264.3,0.54803719]
[1625452775986,2.20527,2264.6,2264.4,1.30290123]
[1625452776088,2.20527,2264.6,2264.4,17.43373623]
[1625452777287,3.20527,2264.6,2264.4,17.43373623]
[1625452777387,3.20527,2264.6,2264.4,1.30290123]
[1625452777939,3.20527,2264.6,2264.3,0.54803719]
[1625452777940,6.94857,2264.6,2264.3,0.54803719]
[1625452778840,2.20527,2264.4,2264.3,0.54803719]
[1625452778941,3.20527,2264.4,2264.3,0.54803719]
[1625452779493,2.20527,2264.4,2264.3,0.54803719]
[1625452781598,2.20527,2264.4,2264.3,1.85105325]
[1625452782648,2.20527,2264.6,2264.3,1.85105325]
[1625452782748,2.20527,2264.6,2264.3,5.38335325]
[1625452782849,2.20527,2264.6,2264.5,2.20527]
[1625452783056,2.20527,2264.6,2264.5,57.63127]
[1625452784567,2.20527,2264.9,2264.5,57.63127]
[1625452784870,2.20527,2264.9,2264.8,2.20527]
[1625452785819,3.20527,2264.9,2264.8,2.20527]
[1625452787470,3.20527,2264.9,2264.8,5.23407]
[1625452787570,3.20527,2264.9,2264.8,21.294864]
[1625452789229,2.20527,2264.9,2264.8,21.294864]
[1625452790237,2.20527,2264.9,2264.8,62.685564]
[1625452790639,2.20527,2264.9,2264.8,21.294864]
[1625452791588,3.20527,2264.9,2264.8,21.294864]
[1625452792390,3.20527,2264.9,2264.8,5.23407]
[1625452792638,3.20527,2264.9,2264.8,2.20527]
[1625452792739,3.20527,2264.9,2264.4,1.3035106]
[1625452792844,2.20527,2264.5,2264.4,1.3035106]
[1625452792940,3.20527,2264.5,2264.4,1.3035106]
[1625452793041,6.60537,2264.5,2264.3,1.85162669]
[1625452793241,46.45007,2264.5,2264.3,1.85162669]
[1625452793339,6.60537,2264.5,2264.3,1.85162669]
[1625452793540,6.60537,2264.5,2264.3,0.54803719]
[1625452794841,2.20527,2264.4,2264.3,0.54803719]
[1625452794942,3.20527,2264.4,2264.3,0.54803719]
[1625452800004,3.20527,2264.4,2264.3,3.719e-05]
[1625452800104,3.20527,2264.4,2263.7,1.30349291]
[1625452800205,8.20527,2264.4,2263.7,1.30349291]
[1625452800717,10.0125372,2264.4,2263.4,1.87102259]
[1625452800907,6.91654,2263.5,2263.4,1.87102259]
[1625452801016,7.91654,2263.5,2263.4,0.56766529]
[1625452801514,7.91654,2263.5,2263.4,1.870996]
[1625452801714,7.91654,2263.5,2263.4,2.00176272]
[1625452802017,7.91654,2263.5,2263.4,2.52302265]
[1625452802719,7.91654,2263.5,2263.4,2.00174824]
[1625452802819,7.91654,2263.5,2263.4,1.87098152]
[1625452803273,7.91654,2263.5,2263.4,0.56766529]
[1625452803525,6.91654,2263.5,2263.4,1.87056015]
[1625452803624,6.91654,2263.5,2263.4,2.00132696]
[1625452803923,6.91654,2263.5,2263.4,2.52239844]
[1625452803924,4.41054,2263.5,2263.4,2.52239844]
[1625452804025,1.0,2263.8,2263.4,2.52239844]
[1625452804329,1.0,2263.8,2263.5,1.43360044]
[1625452804627,1.0,2263.8,2263.6,1.30279185]
[1625452804726,1.0,2263.8,2263.6,1.43354875]
[1625452804926,1.0,2263.8,2263.7,2.20527]
[1625452806079,1.0,2263.9,2263.7,2.20527]
[1625452806734,1.0,2263.9,2263.6,1.30279185]
[1625452806932,2.20527,2263.7,2263.6,1.30279185]
[1625452807031,3.20527,2263.7,2263.6,1.30279185]
[1625452807281,3.20527,2263.7,2263.6,1.43354684]
[1625452808484,3.20527,2263.7,2263.6,1.30279185]
[1625452808787,3.20527,2263.7,2263.6,1.43354542]
[1625452810641,3.20527,2263.7,2263.6,1.30279185]
[1625452811391,2.20527,2263.7,2263.6,1.43354412]
[1625452812043,3.20527,2264.0,2263.6,4.68844412]
[1625452812143,1.0,2264.0,2263.6,4.68844412]
[1625452812397,1.29380259,2264.7,2263.6,4.68844412]
[1625452812598,1.0,2264.6,2263.6,4.68844412]
[1625452812694,1.0,2264.6,2263.7,15.991557]
[1625452812794,1.0,2264.6,2264.0,52.4152]
[1625452812894,1.0,2264.6,2263.7,15.991557]
[1625452812995,2.20527,2264.1,2264.0,2.20527]
[1625452813096,3.20527,2264.1,2264.0,2.20527]
[1625452814449,2.20527,2264.1,2264.0,2.20527]
[1625452814748,3.20527,2264.1,2264.0,2.20527]
[1625452816499,2.20527,2264.3,2264.0,2.20527]
[1625452816954,2.20527,2264.3,2264.2,2.20527]
[1625452817055,2.20527,2264.3,2264.2,5.37917]
[1625452817250,2.20527,2264.3,2264.2,21.543024]
[1625452819355,3.20527,2264.3,2264.2,21.543024]
[1625452819456,3.20527,2264.3,2264.2,5.37917]
[1625452819657,2.20527,2264.3,2264.2,5.37917]
[1625452820863,3.20527,2264.3,2264.2,5.37917]
[1625452820971,2.20527,2264.3,2264.2,3.1739]
[1625452822364,2.20527,2264.3,2263.9,3.50698694]
[1625452822465,2.20527,2264.3,2264.0,42.039]
[1625452822565,2.20527,2264.3,2263.9,3.50698694]
[1625452823017,2.20527,2264.3,2264.2,2.20527]
[1625452826351,3.20527,2264.3,2264.2,2.20527]
[1625452826654,2.20527,2264.3,2264.2,2.20527]
[1625452829678,3.20527,2264.3,2264.2,2.20527]
[1625452830082,2.20527,2264.3,2264.2,2.20527]
[1625452830185,3.20527,2264.3,2264.2,2.20527]
[1625452830585,3.20527,2264.3,2263.9,2.20527]
[1625452830736,5.84517,2264.3,2263.9,2.20527]
[1625452831934,4.84517,2264.3,2263.9,2.20527]
[1625452832035,4.84517,2264.3,2263.9,3.50709922]
[1625452832987,1.0,2264.2,2263.9,3.50709922]
[1625452833088,2.20527,2264.0,2263.9,5.71236922]
[1625452833289,2.20527,2264.0,2263.9,4.41054]
[1625452835391,1.0,2264.2,2263.9,4.41054]
[1625452837002,4.4566976,2264.9,2263.9,4.41054]
[1625452837092,1.0,2264.8,2263.9,4.41054]
[1625452837192,2.20527,2264.4,2264.3,2.20527]
[1625452837451,2.20527,2264.4,2264.3,57.56577]
[1625452838753,2.20527,2264.4,2264.3,2.20527]
[1625452838953,3.20527,2264.4,2264.3,2.20527]
[1625452839154,5.41054,2264.4,2264.3,2.20527]
[1625452839356,4.41054,2264.4,2264.3,2.20527]
[1625452840009,5.41054,2264.4,2264.3,2.20527]
[1625452855720,8.85184,2264.4,2264.3,2.20527]
[1625452856423,8.85184,2264.4,2263.9,3.50901353]
[1625452856624,8.85184,2264.4,2263.9,2.20527]
[1625452857106,1.29656999,2264.1,2263.9,2.20527]
[1625452857196,1.0,2264.0,2263.9,2.20527]
[1625452857288,3.20527,2264.0,2263.9,2.20527]
[1625452857504,47.97547,2264.0,2263.9,2.20527]
[1625452857683,3.20527,2264.0,2263.9,2.20527]
[1625452864497,3.20527,2264.0,2263.6,2.20527]
[1625452865152,3.20527,2264.0,2263.5,1.30361881]
[1625452865350,3.20527,2264.0,2263.4,0.56766529]
[1625452865351,5.23847,2263.6,2263.4,1.87143918]
[1625452865451,1.0,2263.5,2263.4,1.87143918]
[1625452865853,1.0,2263.5,2263.4,0.56766529]
[1625452867305,3.20527,2263.5,2263.4,0.56766529]
[1625452867904,3.20527,2263.5,2263.4,6.529e-05]
[1625452881858,40.30997,2263.5,2263.4,6.529e-05]
[1625452883311,3.20527,2263.5,2263.4,6.529e-05]
[1625452889802,8.20527,2263.5,2263.4,6.529e-05]
[1625452890459,3.20527,2263.5,2263.4,6.529e-05]
[1625452894062,8.20527,2263.5,2263.4,6.529e-05]
[1625452894615,11.52737,2263.5,2263.4,6.529e-05]
[1625452896571,6.52737,2263.5,2263.4,6.529e-05]
[1625452896671,8.20527,2263.5,2263.4,6.529e-05]
[1625452897572,3.20527,2263.5,2263.4,6.529e-05]
[1625452898874,8.20527,2263.5,2263.4,6.529e-05]
[1625452907007,3.20527,2263.5,2263.4,6.529e-05]
[1625452914523,8.20527,2263.5,2263.4,6.529e-05]
[1625452923313,3.20527,2263.5,2263.4,6.529e-05]
[1625452923514,8.20527,2263.5,2263.4,6.529e-05]
[1625452923717,3.20527,2263.5,2263.4,6.529e-05]
[1625452924517,8.20527,2263.5,2263.4,6.529e-05]
[1625452925771,54.94407,2263.5,2263.4,6.529e-05]
[1625452929230,38.3496,2262.8,2262.6,0.02275868]
[1625452929332,1.0,2262.7,2262.6,0.02275868]
[1625452929635,5.41054,2262.7,2262.6,0.02275868]
[1625452930785,4.41054,2262.7,2262.6,0.02275868]
[1625452930983,5.41054,2262.7,2262.6,0.02275868]
[1625452932554,4.41054,2262.7,2262.6,0.02275868]
[1625452935011,5.41054,2262.7,2262.6,0.02275868]
[1625452935212,4.41054,2262.7,2262.6,0.02275868]
[1625452935316,4.41054,2262.7,2262.6,3.38175868]
[1625452935716,4.41054,2262.7,2262.6,7.79229868]
[1625452935816,4.41054,2262.7,2262.6,60.36759868]
[1625452936416,4.41054,2262.7,2262.6,76.37771668]
[1625452937668,2.20527,2262.7,2262.6,76.37771668]
[1625452937920,2.20527,2262.7,2262.6,23.80241668]
[1625452942379,2.20527,2262.7,2262.6,7.79229868]
[1625452944141,2.20527,2262.7,2262.6,5.58702868]
[1625452948115,2.20527,2262.7,2262.6,21.76216868]
[1625452955829,2.20527,2262.7,2262.6,3.38175868]
[1625452956029,2.20527,2262.7,2262.6,0.02275868]
[1625452956379,3.20527,2262.7,2262.6,0.02275868]
[1625452956780,3.20527,2262.7,2262.6,5.868e-05]
[1625452962089,2.20527,2262.7,2262.6,5.868e-05]
[1625452962690,3.20527,2262.7,2262.6,5.868e-05]
[1625452967006,6.11157,2262.7,2262.6,5.868e-05]
[1625452967964,6.11157,2262.7,2262.6,3.19545868]
[1625452968063,2.20527,2262.7,2262.6,3.19545868]
[1625452968512,2.20527,2262.7,2262.6,43.47235868]
[1625452969674,2.20527,2262.7,2262.6,43.60318581]
[1625452969769,2.20527,2262.7,2262.6,59.59621381]
[1625452969873,2.20527,2262.7,2262.6,64.00675381]
[1625452970677,2.20527,2262.7,2262.6,65.83278444]
[1625452971129,2.20527,2262.7,2262.6,25.55588444]
[1625452971681,2.20527,2262.7,2262.6,64.02448444]
[1625452972032,2.20527,2262.7,2262.6,25.55588444]
[1625452974388,2.20527,2262.7,2262.6,66.80098444]
[1625452975043,2.20527,2263.1,2262.6,66.80098444]
[1625452975340,2.20527,2263.1,2262.8,1.82613345]
[1625452975645,2.20527,2263.1,2262.9,16.10571393]
[1625452975845,2.20527,2263.1,2263.0,2.20527]
[1625452979966,2.20527,2263.4,2263.0,2.20527]
[1625452981920,2.20527,2263.4,2263.3,2.20527]
[1625452982123,3.20527,2263.4,2263.3,2.20527]
[1625452984241,5.79447,2263.4,2263.0,2.20527]
[1625452984340,5.79447,2263.4,2262.6,5.868e-05]
[1625452984493,12.58945098,2263.4,2262.6,5.868e-05]
[1625452984905,1.79397562,2263.2,2262.6,5.868e-05]
[1625452984993,1.0,2263.1,2262.6,5.868e-05]
[1625452985243,1.79328762,2263.0,2262.6,5.868e-05]
[1625452985342,1.0,2262.9,2262.6,5.868e-05]
[1625452985443,3.9903,2262.9,2262.6,5.868e-05]
[1625452985893,4.41054,2262.7,2262.6,5.868e-05]
[1625452985992,5.41054,2262.7,2262.6,5.868e-05]
[1625452988710,4.41054,2262.7,2262.6,5.868e-05]
[1625452994687,5.41054,2262.7,2262.6,5.868e-05]
[1625452998352,7.1996553,2262.7,2262.6,5.868e-05]
[1625453000867,12.1996553,2262.7,2262.6,5.868e-05]
[1625453001282,10.41054,2262.7,2262.6,5.868e-05]
[1625453002327,5.41054,2262.7,2262.6,5.868e-05]
[1625453002733,7.96382189,2262.7,2262.6,5.868e-05]
[1625453003232,56.09342189,2262.7,2262.6,5.868e-05]
[1625453005086,61.09342189,2262.7,2262.6,5.868e-05]
[1625453005871,56.09342189,2262.7,2262.6,5.868e-05]
[1625453006390,55.32762336,2262.7,2262.6,5.868e-05]
[1625453006990,7.19802336,2262.7,2262.6,5.868e-05]
[1625453007441,5.41054,2262.7,2262.6,5.868e-05]
[1625453009445,60.68014,2262.7,2262.6,5.868e-05]
[1625453010548,8.87354,2262.7,2262.6,5.868e-05]
[1625453011949,8.87354,2262.7,2262.6,2.20532868]